fUSD/lending_fUSD_20250524
["ID","MTS","AMOUNT","RATE_DAILY","PERIOD"]
[362257503,1748121814025,-239.89374034,0.00019827,2]
[362257504,1748121814036,-477.59682305,0.00019827,2]
[362257505,1748121814048,-413.89664256,0.00019827,2]
[362257506,1748121814059,-500.0,0.00019827,2]
[362257507,1748121814071,-315.4972784,0.00019827,2]
[362257508,1748121814080,-184.5027216,0.00019828,2]
[362257509,1748121814091,-67.4972784,0.00019828,2]
[362257510,1748121814101,-458.52005583,0.00019836,2]
[362257511,1748121814110,-150.0,0.00019844,2]
[362257512,1748121814119,-150.0,0.00019844,2]
[362257513,1748121814129,-150.0,0.00019845,2]
[362257514,1748121814138,-7.98266577,0.00019849,2]
[362257515,1748121814149,-500.0,0.00019849,2]
[362257516,1748121814160,-500.0,0.00019849,2]
[362257517,1748121814171,-181.01733423,0.00019849,2]
[362257518,1748121814182,-318.98266577,0.00019849,2]
[362257519,1748121814193,-500.0,0.00019849,2]
[362257520,1748121814205,-370.01733423,0.00019849,2]
[362257521,1748121814215,-129.98266577,0.00019849,2]
[362257522,1748121814226,-696.0,0.00019849,2]
[362257523,1748121814238,-363.01733423,0.00019849,2]
[362257524,1748121814248,-231.14054732,0.00019849,2]
[362257525,1748121814259,-957.85945268,0.00019849,2]
[362257526,1748121814269,-148.31609553,0.00019849,2]
[362257527,1748121814281,-501.29617733,0.00019849,2]
[362257528,1748121814290,-65.85382267,0.0001985,2]
[362257529,1748121814302,-143.14617733,0.0001985,2]
[362257530,1748121814315,-751.34593511,0.00019854,2]
[362257531,1748121814325,-150.0,0.00019856,2]
[362257532,1748121814334,-150.0,0.00019866,2]
[362257533,1748121814344,-1000.0,0.00019867,2]
[362257534,1748121814354,-150.0,0.00019878,2]
[362257535,1748121814364,-150.0,0.00019883,2]
[362257536,1748121814373,-150.0,0.0001989,2]
[362257537,1748121814383,-150.0,0.00019894,2]
[362257538,1748121814392,-510.7439,0.000199,2]
[362257539,1748121814402,-2407.83455496,0.000199,2]
[362257540,1748121814412,-356.31836413,0.000199,2]
[362257541,1748121814422,-766.0,0.000199,2]
[362257542,1748121814431,-1599.91113872,0.000199,2]
[362257543,1748121814443,-346.97334563,0.000199,2]
[362257544,1748121814453,-66.91086549,0.000199,2]
[362257545,1748121814472,-170.08913451,0.000199,2]
[362257546,1748121814482,-266.58086549,0.000199,2]
[362257547,1748121814495,-834.79,0.000199,2]
[362257548,1748121814507,-195.67719753,0.000199,2]
[362257549,1748121814517,-639.04280247,0.000199,2]
[362257550,1748121814529,-445.17,0.000199,2]
[362257551,1748121814540,-212.83526036,0.000199,2]
[362257552,1748121814550,-1023.43473964,0.000199,2]
[362257553,1748121814561,-273.61332319,0.000199,2]
[362257554,1748121814571,-477.73261192,0.000199,2]
[362257555,1748121814582,-500.0,0.000199,2]
[362257556,1748121814593,-278.17257338,0.000199,2]
[362257557,1748121814604,-41.14287753,0.000199,2]
[362257558,1748121814614,-278.76284992,0.000199,2]
[362257559,1748121814626,-965.44783735,0.000199,2]
[362257560,1748121814637,-52.83737556,0.000199,2]
[362257561,1748121814647,-452.66262444,0.000199,2]
[362257562,1748121814658,-567.15,0.000199,2]
[362257563,1748121814669,-277.23543839,0.000199,2]
[362257564,1748121814679,-1297.04806283,0.000199,2]
[362257565,1748121814688,-1297.04806283,0.000199,2]
[362257566,1748121814697,-1297.04806283,0.000199,2]
[362257567,1748121814707,-1297.04806283,0.000199,2]
[362257568,1748121814717,-751.34593511,0.000199,2]
[362257569,1748121814726,-1297.04806283,0.000199,2]
[362257570,1748121814735,-191.93380432,0.000199,2]
[362257571,1748121814747,-1105.11425851,0.000199,2]
[362257572,1748121814757,-1297.04806283,0.000199,2]
[362257573,1748121814767,-1297.04806283,0.000199,2]
[362257574,1748121814775,-1297.04806283,0.000199,2]
[362257575,1748121814786,-1297.04806283,0.000199,2]
[362257576,1748121814795,-1297.04806283,0.000199,2]
[362257577,1748121814804,-375.0,0.000199,2]
[362257578,1748121814814,-1297.04806283,0.000199,2]
[362257579,1748121814823,-375.74736451,0.000199,2]
[362257580,1748121814835,-921.30069832,0.000199,2]
[362257581,1748121814846,-1297.04806283,0.000199,2]
[362257582,1748121814855,-2078.30152196,0.000199,2]
[362257583,1748121814866,-194.1668134,0.000199,2]
[362257584,1748121814877,-1000.0,0.000199,2]
[362257585,1748121814888,-2003.53173682,0.000199,2]
[362257586,1748121814905,-551.31649639,0.000199,2]
[362257587,1748121814922,-458.52005583,0.000199,2]
[362257588,1748121814935,-3162.56498117,0.000199,2]
[362257589,1748121814944,-6599.71308106,0.000199,2]
[362257590,1748121814957,-11781.95116667,0.000199,2]
[362257591,1748121814969,-580.49403654,0.000199,2]
[362257592,1748121814979,-150.0,0.00019913,2]
[362257593,1748121814991,-200.0,0.00019923,2]
[362257594,1748121815000,-200.0,0.00019923,2]
[362257595,1748121815011,-150.0,0.00019959,2]
[362257596,1748121815021,-500.0,0.00019973,2]
[362257597,1748121815031,-10001.45713013,0.00019973,2]
[362257598,1748121815044,-1593.54286987,0.00019973,2]
[362257599,1748121815054,-500.0,0.00019973,2]
[362257600,1748121815064,-300.0,0.00019982,2]
[362257601,1748121815076,-496.54,0.00019984,2]
[362257602,1748121815088,-187.7886372,0.0001999,2]
[362257603,1748121815098,-187.7886372,0.0001999,2]
[362257604,1748121815108,-187.7886372,0.0001999,2]
[362257605,1748121815118,-339.01443323,0.00019999,2]
[362257606,1748121815128,-236.47,0.00019999,2]
[362257607,1748121815137,-500.0,0.00019999,2]
[362257608,1748121815147,-500.0,0.00019999,2]
[362257609,1748121815157,-500.0,0.00019999,2]
[362257610,1748121815166,-500.0,0.00019999,2]
[362257611,1748121815177,-637.52,0.00019999,2]
[362257612,1748121815187,-5115.49795197,0.0002,2]
[362257613,1748121815198,-11781.95116667,0.0002,2]
[362257614,1748121815210,-11781.95116667,0.0002,2]
[362257615,1748121815222,-11781.95116667,0.0002,2]
[362257616,1748121815234,-11781.95116667,0.0002,2]
[362257617,1748121815247,-11781.95116667,0.0002,2]
[362257618,1748121815261,-11781.95116667,0.0002,2]
[362257619,1748121815274,-11781.95116667,0.0002,2]
[362257620,1748121815286,-11781.95116667,0.0002,2]
[362257621,1748121815296,-11781.95116667,0.0002,2]
[362257622,1748121815309,-11781.95116667,0.0002,2]
[362257623,1748121815320,-11781.95116667,0.0002,2]
[362257624,1748121815333,-11781.95116667,0.0002,2]
[362257625,1748121815357,-420.0,0.00019178,2]
[362257626,1748121815367,-11361.95116667,0.0002,2]
[362257627,1748121815379,-11781.95116667,0.0002,2]
[362257628,1748121815391,-11781.95116667,0.0002,2]
[362257629,1748121815402,-11781.95116667,0.0002,2]
[362257630,1748121815415,-11781.95116667,0.0002,2]
[362257631,1748121815427,-11781.95116667,0.0002,2]
[362257632,1748121815439,-11781.95116667,0.0002,2]
[362257633,1748121815459,-11781.95116667,0.0002,2]
[362257634,1748121815470,-11781.95116667,0.0002,2]
[362257635,1748121815483,-11781.95116667,0.0002,2]
[362257636,1748121815494,-11781.95116667,0.0002,2]
[362257637,1748121815507,-11781.95116667,0.0002,2]
[362257638,1748121815518,-11781.95116667,0.0002,2]
[362257639,1748121815529,-11781.95116667,0.0002,2]
[362257640,1748121815540,-11781.95116667,0.0002,2]
[362257641,1748121815551,-11781.95116667,0.0002,2]
[362257642,1748121815566,-11781.95116667,0.0002,2]
[362257643,1748121815578,-11781.95116667,0.0002,2]
[362257644,1748121815589,-11781.95116667,0.0002,2]
[362257645,1748121815600,-11781.95116667,0.0002,2]
[362257646,1748121815611,-10032.52246014,0.0002,2]
[362257647,1748121815630,-3584.87,0.00019178,2]
[362257648,1748121815639,-2698.22375361,0.0002,2]
[362257649,1748121815652,-784.23634055,0.0002,2]
[362257650,1748121815662,-1099.0,0.0002,2]
[362257651,1748121815675,-1543.0,0.0002,2]
[362257652,1748121815687,-751.34593511,0.0002,2]
[362257653,1748121815702,-937.0,0.0002,2]
[362257654,1748121815713,-1552.78661535,0.0002,2]
[362257655,1748121815724,-6388.5242371,0.0002,2]
[362257656,1748121815744,-495.09730753,0.00019205,2]
[362257657,1748121815755,-3089.77269247,0.00019205,2]
[362257658,1748121815764,-964.22730753,0.0002,2]
[362257659,1748121815775,-154.0,0.0002,2]
[362257660,1748121815792,-578.168,0.0002,2]
[362257661,1748121815803,-922.708,0.0002,2]
[362257662,1748121815825,-3584.87,0.00019232,2]
[362257663,1748121815835,-686.61780752,0.0002,2]
[362257664,1748121815846,-200.0,0.0002,2]
[362257665,1748121815857,-682.49,0.0002,2]
[362257666,1748121815869,-884.92,0.0002,2]
[362257667,1748121815885,-9366.14163177,0.0002,2]
[362257668,1748121815902,-3584.87,0.0001926,2]
[362257669,1748121815913,-1445.46209687,0.0002,2]
[362257670,1748121815925,-682.49,0.0002,2]
[362257671,1748121815935,-356.30697293,0.0002,2]
[362257672,1748121815950,-443.25,0.0002,2]
[362257673,1748121815962,-834.72,0.0002,2]
[362257674,1748121815980,-445.17,0.00019287,2]
[362257675,1748121815995,-1236.27,0.00019287,2]
[362257676,1748121816007,-458.52005583,0.00019287,2]
[362257677,1748121816024,-1444.90994417,0.00019287,2]
[362257678,1748121816034,-501.97454018,0.0002,2]
[362257679,1748121816072,-751.34593511,0.00019315,2]
[362257680,1748121816083,-2833.52406489,0.00019315,2]
[362257681,1748121816094,-6490.36876174,0.0002,2]
[362257682,1748121816117,-3584.87,0.00019342,2]
[362257683,1748121816126,-700.96448659,0.0002,2]
[362257684,1748121816137,-682.49,0.0002,2]
[362257685,1748121816148,-884.92,0.0002,2]
[362257686,1748121816158,-75.46219349,0.0002,2]
[362257687,1748121816169,-283.66,0.0002,2]
[362257688,1748121816185,-834.72,0.00019369,2]
[362257689,1748121816196,-445.17,0.00019369,2]
[362257690,1748121816207,-1236.27,0.00019369,2]
[362257691,1748121816222,-150.0,0.00019369,2]
[362257692,1748121816233,-150.0,0.00019369,2]
[362257693,1748121816244,-768.71,0.00019369,2]
[362257694,1748121816255,-231.29,0.0002,2]
[362257695,1748121816266,-151.0,0.0002,2]
[362257696,1748121816277,-567.16076752,0.0002,2]
[362257697,1748121816290,-2145.98963163,0.0002,2]
[362257698,1748121816308,-3584.87,0.00019397,2]
[362257699,1748121816317,-6053.43945435,0.0002,2]
[362257700,1748121816328,-7494.66774203,0.0002,2]
[362257701,1748121816341,-1555.20714558,0.0002,2]
[362257702,1748121816354,-682.67,0.0002,2]
[362257703,1748121816365,-885.1078435,0.0002,2]
[362257704,1748121816376,-1286.91344778,0.0002,2]
[362257705,1748121816389,-436.81810831,0.0002,2]
[362257706,1748121816406,-834.83000001,0.00019424,2]
[362257707,1748121816418,-418.85807631,0.00019424,2]
[362257708,1748121993441,-221.25505404,0.000182,5]
[362257709,1748121999102,-171.47930532,0.000182,5]
[362257710,1748122000595,-197.47902788,0.000182,5]
[362257711,1748122002541,-197.47902788,0.000182,5]
[362257712,1748122044842,623.97,0.00016624,2]
[362257714,1748122055230,324.7,0.00013699,2]
[362257716,1748122083844,-4773.0,0.000181,5]
[362257730,1748122119740,430.47135748,0.00022,120]
[362257739,1748122231923,-394.958056,0.00018442,2]
[362257740,1748122231932,-631.03,0.00018535,2]
[362257741,1748122231942,-408.63990693,0.00018888,2]
[362258284,1748122237865,-215.33009307,0.00018888,2]
[362258287,1748122237875,-194.71861536,0.00018969,2]
[362258289,1748122237884,-164.87,0.00019062,2]
[362258290,1748122237893,-1078.52081854,0.00019069,2]
[362258292,1748122237902,-194.71861534,0.00019161,2]
[362258295,1748122237912,-300.0,0.00019176,2]
[362258297,1748122237921,-300.0,0.00019177,2]
[362258298,1748122237930,-300.0,0.00019177,2]
[362258300,1748122237939,-300.0,0.00019177,2]
[362258302,1748122237948,-450.0,0.00019177,2]
[362258304,1748122237958,-1200.0,0.00019177,2]
[362258306,1748122237967,-420.0,0.00019178,2]
[362258309,1748122237977,-420.0,0.00019178,2]
[362258311,1748122237986,-420.0,0.00019178,2]
[362258312,1748122237996,-420.0,0.00019178,2]
[362258314,1748122238005,-420.0,0.00019178,2]
[362258316,1748122238014,-4634.21169572,0.00019178,2]
[362258319,1748122238025,-1138.95830428,0.00019178,2]
[362258321,1748122238034,-420.0,0.00019178,2]
[362258323,1748122238043,-420.0,0.00019178,2]
[362258325,1748122238052,-420.0,0.00019178,2]
[362258327,1748122238061,-420.0,0.00019178,2]
[362258329,1748122238070,-420.0,0.00019178,2]
[362258331,1748122238079,-420.0,0.00019178,2]
[362258333,1748122238088,-420.0,0.00019178,2]
[362258335,1748122238097,-420.0,0.00019178,2]
[362258337,1748122238106,-420.0,0.00019178,2]
[362258339,1748122238117,-420.0,0.00019178,2]
[362258340,1748122238127,-420.0,0.00019178,2]
[362258342,1748122238138,-420.0,0.00019178,2]
[362258344,1748122238147,-560.44,0.00019178,2]
[362258367,1748122238382,-420.0,0.00019178,2]
[362258368,1748122238392,-420.0,0.00019178,2]
[362258370,1748122238402,-590.37,0.00019178,2]
[362258372,1748122238411,-420.0,0.00019178,2]
[362258373,1748122238420,-420.0,0.00019178,2]
[362258375,1748122238429,-420.0,0.00019178,2]
[362258377,1748122238441,-420.0,0.00019178,2]
[362258379,1748122238450,-420.0,0.00019178,2]
[362258380,1748122238461,-511.04,0.00019178,2]
[362258382,1748122238470,-420.0,0.00019178,2]
[362258384,1748122238481,-420.0,0.00019178,2]
[362258385,1748122238490,-420.0,0.00019178,2]
[362258387,1748122238499,-156.587,0.00019178,2]
[362258389,1748122238508,-500.0,0.00019204,2]
[362258391,1748122238518,-589.9427649,0.00019204,2]
[362258392,1748122238527,-424.50575854,0.00019204,2]
[362258394,1748122238537,-500.0,0.00019204,2]
[362258396,1748122238547,-375.0698985,0.00019204,2]
[362258398,1748122238556,-420.0,0.00019205,2]
[362258399,1748122238566,-420.0,0.00019205,2]
[362258401,1748122238575,-420.0,0.00019205,2]
[362258403,1748122238584,-420.0,0.00019205,2]
[362258404,1748122238593,-535.3,0.00019205,2]
[362258406,1748122238602,-5773.17,0.00019205,2]
[362258408,1748122238612,-420.0,0.00019205,2]
[362258409,1748122238621,-420.0,0.00019205,2]
[362258411,1748122238630,-420.0,0.00019205,2]
[362258413,1748122238640,-420.0,0.00019205,2]
[362258415,1748122238649,-225.33,0.00019205,2]
[362258416,1748122238658,-420.0,0.00019205,2]
[362258418,1748122238667,-420.0,0.00019205,2]
[362258420,1748122238676,-420.0,0.00019205,2]
[362258422,1748122238686,-420.0,0.00019205,2]
[362258424,1748122238695,-420.0,0.00019205,2]
[362258425,1748122238704,-420.0,0.00019205,2]
[362258427,1748122238714,-560.44,0.00019205,2]
[362258429,1748122238723,-420.0,0.00019205,2]
[362258431,1748122238732,-590.37,0.00019205,2]
[362258432,1748122238741,-420.0,0.00019205,2]
[362258434,1748122238750,-420.0,0.00019205,2]
[362258436,1748122238759,-420.0,0.00019205,2]
[362258438,1748122238769,-420.0,0.00019205,2]
[362258440,1748122238778,-420.0,0.00019205,2]
[362258441,1748122238787,-420.0,0.00019205,2]
[362258443,1748122238796,-420.0,0.00019205,2]
[362258445,1748122238805,-420.0,0.00019232,2]
[362258447,1748122238815,-420.0,0.00019232,2]
[362258448,1748122238824,-361.92,0.00019232,2]
[362258450,1748122238833,-5773.17,0.00019232,2]
[362258452,1748122238842,-420.0,0.00019232,2]
[362258454,1748122238851,-420.0,0.00019232,2]
[362258456,1748122238860,-420.0,0.00019232,2]
[362258457,1748122238870,-420.0,0.00019232,2]
[362258459,1748122238879,-420.0,0.00019232,2]
[362258461,1748122238888,-420.0,0.00019232,2]
[362258463,1748122238898,-420.0,0.00019232,2]
[362258464,1748122238907,-420.0,0.00019232,2]
[362258466,1748122238916,-560.44,0.00019232,2]
[362258468,1748122238925,-420.0,0.00019232,2]
[362258470,1748122238934,-590.37,0.00019232,2]
[362258472,1748122238943,-420.0,0.00019232,2]
[362258473,1748122238952,-420.0,0.00019232,2]
[362258475,1748122238961,-420.0,0.00019232,2]
[362258477,1748122238970,-420.0,0.00019232,2]
[362258479,1748122238979,-420.0,0.00019232,2]
[362258480,1748122238988,-420.0,0.00019232,2]
[362258482,1748122238998,-420.0,0.00019232,2]
[362258484,1748122239007,-420.0,0.0001926,2]
[362258486,1748122239017,-420.0,0.0001926,2]
[362258488,1748122239026,-5773.17,0.0001926,2]
[362258489,1748122239035,-420.0,0.0001926,2]
[362258491,1748122239044,-420.0,0.0001926,2]
[362258493,1748122239053,-420.0,0.0001926,2]
[362258495,1748122239062,-420.0,0.0001926,2]
[362258497,1748122239071,-515.24,0.0001926,2]
[362258498,1748122239081,-420.0,0.0001926,2]
[362258500,1748122239090,-420.0,0.0001926,2]
[362258502,1748122239099,-560.44,0.0001926,2]
[362258504,1748122239108,-420.0,0.0001926,2]
[362258505,1748122239117,-590.37,0.0001926,2]
[362258507,1748122239126,-420.0,0.0001926,2]
[362258509,1748122239135,-420.0,0.0001926,2]
[362258511,1748122239143,-420.0,0.0001926,2]
[362258512,1748122239152,-420.0,0.0001926,2]
[362258514,1748122239161,-303.42,0.0001926,2]
[362258516,1748122239170,-420.0,0.0001926,2]
[362258518,1748122239179,-420.0,0.0001926,2]
[362258520,1748122239188,-262.53768825,0.00019286,2]
[362258522,1748122239197,-420.0,0.00019287,2]
[362258524,1748122239206,-420.0,0.00019287,2]
[362258526,1748122239215,-5773.17,0.00019287,2]
[362258528,1748122239224,-420.0,0.00019287,2]
[362258530,1748122239234,-165.72,0.00019287,2]
[362258532,1748122239243,-420.0,0.00019287,2]
[362258533,1748122239252,-166.83,0.00019287,2]
[362258535,1748122239262,-291.16,0.00019287,2]
[362258537,1748122239271,-560.44,0.00019287,2]
[362258539,1748122239281,-420.0,0.00019287,2]
[362258541,1748122239290,-590.37,0.00019287,2]
[362258542,1748122239299,-441.12,0.00019287,2]
[362258543,1748122239308,-420.0,0.00019287,2]
[362258544,1748122239317,-420.0,0.00019287,2]
[362258545,1748122239326,-420.0,0.00019287,2]
[362258546,1748122239335,-420.0,0.00019287,2]
[362258547,1748122239344,-420.0,0.00019315,2]
[362258548,1748122239354,-420.0,0.00019315,2]
[362258549,1748122239364,-5773.17,0.00019315,2]
[362258550,1748122239373,-184.47,0.00019315,2]
[362258551,1748122239384,-420.0,0.00019315,2]
[362258552,1748122239394,-560.44,0.00019315,2]
[362258553,1748122239403,-420.0,0.00019315,2]
[362258554,1748122239412,-590.37,0.00019315,2]
[362258555,1748122239421,-420.0,0.00019315,2]
[362258556,1748122239431,-420.0,0.00019315,2]
[362258557,1748122239441,-420.0,0.00019315,2]
[362258558,1748122239451,-420.0,0.00019315,2]
[362258559,1748122239460,-295.64,0.00019342,2]
[362258561,1748122239470,-420.0,0.00019342,2]
[362258562,1748122239480,-5773.17,0.00019342,2]
[362258564,1748122239490,-420.0,0.00019342,2]
[362258566,1748122239499,-560.44,0.00019342,2]
[362258568,1748122239511,-420.0,0.00019342,2]
[362258570,1748122239520,-590.37,0.00019342,2]
[362258572,1748122239529,-420.0,0.00019342,2]
[362258574,1748122239539,-420.0,0.00019342,2]
[362258576,1748122239549,-420.0,0.00019342,2]
[362258578,1748122239558,-420.0,0.00019342,2]
[362258580,1748122239568,-194.71861534,0.00019352,2]
[362258582,1748122239577,-420.0,0.00019369,2]
[362258584,1748122239587,-5773.17,0.00019369,2]
[362258586,1748122239596,-424.08,0.00019369,2]
[362258588,1748122239605,-560.44,0.00019369,2]
[362258590,1748122239615,-420.0,0.00019369,2]
[362258592,1748122239624,-590.37,0.00019369,2]
[362258594,1748122239633,-420.0,0.00019369,2]
[362258596,1748122239642,-420.0,0.00019369,2]
[362258598,1748122239651,-420.0,0.00019369,2]
[362258600,1748122239661,-420.0,0.00019369,2]
[362258602,1748122239671,-420.0,0.00019397,2]
[362258604,1748122239680,-5773.17,0.00019397,2]
[362258607,1748122239689,-560.44,0.00019397,2]
[362258609,1748122239698,-420.0,0.00019397,2]
[362258611,1748122239708,-590.37,0.00019397,2]
[362258614,1748122239717,-420.0,0.00019397,2]
[362258616,1748122239727,-408.36,0.00019397,2]
[362258618,1748122239736,-420.0,0.00019397,2]
[362258620,1748122239746,-420.0,0.00019397,2]
[362258622,1748122239755,-420.0,0.00019424,2]
[362258624,1748122239764,-5773.17,0.00019424,2]
[362258627,1748122239774,-560.44,0.00019424,2]
[362258629,1748122239783,-420.0,0.00019424,2]
[362258631,1748122239793,-590.37,0.00019424,2]
[362258633,1748122239802,-420.0,0.00019424,2]
[362258635,1748122239811,-420.0,0.00019424,2]
[362258637,1748122239821,-420.0,0.00019424,2]
[362258639,1748122239831,-207.4,0.0001944,2]
[362258641,1748122239840,-420.0,0.00019452,2]
[362258643,1748122239849,-5773.17,0.00019452,2]
[362258645,1748122239859,-560.44,0.00019452,2]
[362258647,1748122239869,-420.0,0.00019452,2]
[362258649,1748122239878,-590.37,0.00019452,2]
[362258651,1748122239887,-420.0,0.00019452,2]
[362258652,1748122239897,-420.0,0.00019452,2]
[362258655,1748122239907,-420.0,0.00019452,2]
[362258656,1748122239916,-420.0,0.00019479,2]
[362258659,1748122239926,-5773.17,0.00019479,2]
[362258660,1748122239935,-560.44,0.00019479,2]
[362258662,1748122239944,-152.2,0.00019479,2]
[362258664,1748122239953,-590.37,0.00019479,2]
[362258666,1748122239963,-420.0,0.00019479,2]
[362258668,1748122239973,-420.0,0.00019479,2]
[362258670,1748122239982,-420.0,0.00019479,2]
[362258672,1748122239991,-420.0,0.00019506,2]
[362258674,1748122240000,-5773.17,0.00019506,2]
[362258676,1748122240009,-560.44,0.00019506,2]
[362258678,1748122240019,-590.37,0.00019506,2]
[362258680,1748122240028,-420.0,0.00019506,2]
[362258682,1748122240038,-420.0,0.00019506,2]
[362258684,1748122240047,-445.62,0.00019506,2]
[362258686,1748122240056,-420.0,0.00019534,2]
[362258688,1748122240066,-5773.17,0.00019534,2]
[362258690,1748122240075,-560.44,0.00019534,2]
[362258692,1748122240084,-590.37,0.00019534,2]
[362258694,1748122240093,-420.0,0.00019534,2]
[362258696,1748122240103,-420.0,0.00019534,2]
[362258698,1748122240112,-420.0,0.00019561,2]
[362258700,1748122240121,-5773.17,0.00019561,2]
[362258702,1748122240131,-560.44,0.00019561,2]
[362258704,1748122240140,-590.37,0.00019561,2]
[362258707,1748122240150,-335.91,0.00019561,2]
[362258708,1748122240159,-420.0,0.00019561,2]
[362258711,1748122240169,-555.16839092,0.00019588,2]
[362258712,1748122240178,-420.0,0.00019589,2]
[362258714,1748122240188,-5773.17,0.00019589,2]
[362258717,1748122240198,-560.44,0.00019589,2]
[362258719,1748122240207,-590.37,0.00019589,2]
[362258721,1748122240217,-420.0,0.00019589,2]
[362258723,1748122240226,-916.68,0.00019589,2]
[362258725,1748122240235,-525.330405,0.00019599,2]
[362258727,1748122240244,-420.0,0.00019616,2]
[362258729,1748122240254,-5773.17,0.00019616,2]
[362258731,1748122240263,-560.44,0.00019616,2]
[362258733,1748122240273,-590.37,0.00019616,2]
[362258734,1748122240283,-420.0,0.00019616,2]
[362258736,1748122240292,-420.0,0.00019643,2]
[362258738,1748122240301,-5773.17,0.00019643,2]
[362258740,1748122240311,-560.44,0.00019643,2]
[362258742,1748122240320,-590.37,0.00019643,2]
[362258744,1748122240330,-420.0,0.00019643,2]
[362258746,1748122240341,-1508.4218,0.00019653,2]
[362258749,1748122240350,-420.0,0.00019671,2]
[362258750,1748122240360,-5773.17,0.00019671,2]
[362258753,1748122240370,-560.44,0.00019671,2]
[362258755,1748122240380,-590.37,0.00019671,2]
[362258757,1748122240389,-420.0,0.00019671,2]
[362258759,1748122240398,-327.9,0.00019698,2]
[362258761,1748122240408,-5773.17,0.00019698,2]
[362258763,1748122240417,-560.44,0.00019698,2]
[362258765,1748122240427,-590.37,0.00019698,2]
[362258767,1748122240439,-420.0,0.00019698,2]
[362258769,1748122240449,-5773.17,0.00019726,2]
[362258771,1748122240459,-560.44,0.00019726,2]
[362258773,1748122240470,-590.37,0.00019726,2]
[362258775,1748122240481,-186.42,0.00019726,2]
[362258777,1748122240491,-416.875,0.00019748,2]
[362258779,1748122240502,-154.0,0.00019748,2]
[362258781,1748122240514,-5773.17,0.00019753,2]
[362258783,1748122240524,-560.44,0.00019753,2]
[362258785,1748122240533,-590.37,0.00019753,2]
[362258787,1748122240543,-5773.17,0.0001978,2]
[362258789,1748122240553,-560.44,0.0001978,2]
[362258791,1748122240562,-590.37,0.0001978,2]
[362258793,1748122240572,-5773.37192369,0.00019808,2]
[362258796,1748122240582,-560.67,0.00019808,2]
[362258798,1748122240591,-590.3709,0.00019808,2]
[362258800,1748122240601,-24667.16145272,0.0001981,2]
[362258802,1748122240610,-254.36,0.00019811,2]
[362258804,1748122240620,-500.0,0.000199,2]
[362258806,1748122240629,-500.0,0.000199,2]
[362258807,1748122240639,-762.0,0.000199,2]
[362258810,1748122240649,-375.0,0.000199,2]
[362258812,1748122240658,-590.79430212,0.000199,2]
[362258813,1748122240667,-766.0,0.000199,2]
[362258815,1748122240677,-1062.62202568,0.000199,2]
[362258818,1748122240687,-237.0,0.000199,2]
[362258819,1748122240696,-1000.0,0.000199,2]
[362258822,1748122240706,-217.74,0.000199,2]
[362258824,1748122240715,-217.74,0.000199,2]
[362258826,1748122240725,-2662.18777484,0.000199,2]
[362258828,1748122240735,-504.85155625,0.00019973,2]
[362258830,1748122240745,-500.0,0.00019973,2]
[362258832,1748122240754,-208.42445273,0.00019973,2]
[362258834,1748122240764,-500.0,0.00019973,2]